bitfinex/quotes_SOLUSD_20260103
["timestamp","ask_amount","ask_price","bid_price","bid_amount"]
[1767430908549,10.28000944,130.67,130.65,0.1]
[1767430909028,10.54853129,130.67,130.65,0.1]
[1767430909348,2.65712631,130.66,130.65,0.1]
[1767430910744,7.92140498,130.67,130.65,0.1]
[1767430910931,2.65712631,130.66,130.65,0.1]
[1767430913147,2.65712631,130.67,130.65,0.75257462]
[1767430917362,10.30961883,130.68,130.65,0.75257462]
[1767430919559,7.75094059,130.69,130.65,0.75257462]
[1767430919766,10.57657129,130.71,130.66,0.69457659]
[1767430920169,7.65092313,130.71,130.67,0.69457659]
[1767430920463,10.57578796,130.72,130.67,0.69457659]
[1767430922042,10.57578796,130.72,130.68,0.69457659]
[1767430926580,2.65712631,130.71,130.68,0.69457659]
[1767430929749,10.57578796,130.72,130.69,0.69457659]
[1767430929955,19.38924883,130.75,130.7,0.69457659]
[1767430930167,38.23593201,130.77,130.71,0.69457659]
[1767430930168,0.26852185,130.77,130.71,0.69457659]
[1767430930472,10.30355542,130.78,130.74,0.69457659]
[1767430930643,7.64642911,130.78,130.74,0.69457659]
[1767430931039,10.57038205,130.78,130.74,0.69457659]
[1767430933574,19.1153102,130.79,130.75,0.69457659]
[1767430933575,2.75612631,130.79,130.75,0.69457659]
[1767430934557,10.40237408,130.79,130.75,0.69457659]
[1767430936462,7.74524777,130.79,130.75,0.69457659]
[1767430938759,10.40237408,130.79,130.75,0.69457659]
[1767430940873,0.099,130.79,130.75,0.69457659]
[1767430946189,7.74484448,130.79,130.75,0.69457659]
[1767430950883,7.74484448,130.79,130.76,0.67298777]
[1767430951189,7.74445235,130.8,130.77,0.67298777]
[1767430952158,0.26682663,130.79,130.76,0.67298777]
[1767430953484,0.26852185,130.8,130.77,0.67298777]
[1767430953670,27.02489601,130.81,130.77,0.67298777]
[1767430954171,0.099,130.8,130.77,0.67298777]
[1767430959890,7.91375425,130.81,130.77,0.67298777]
[1767430961305,7.91375425,130.81,130.78,0.67298777]
[1767430961600,7.7441423,130.82,130.79,0.64285128]
[1767430962177,7.87297742,130.82,130.79,0.64285128]
[1767430963793,0.1,130.82,130.79,0.64285128]
[1767430963993,0.199,130.82,130.79,0.64285128]
[1767430965506,7.84343022,130.82,130.79,0.64285128]
[1767430969209,0.1,130.82,130.81,0.67298777]
[1767430969386,0.1,130.84,130.82,0.67298777]
[1767430974708,0.1,130.84,130.83,0.67298777]
[1767430975016,0.1,130.84,130.83,0.64408365]
[1767430975614,0.1,130.84,130.83,0.61484761]
[1767430979219,0.1,130.84,130.83,0.58529957]
[1767430979816,0.1,130.84,130.83,0.55579543]
[1767430981510,0.1,130.84,130.79,19.11387403]
[1767430981511,0.16042509,130.83,130.79,1.69769015]
[1767430981692,0.45087133,130.81,130.77,1.69769015]
[1767430981901,0.45087133,130.81,130.77,0.66721474]
[1767430982302,2.14856148,130.81,130.77,0.66721474]
[1767430982498,2.14568606,130.79,130.76,0.66721474]
[1767430982694,9.79159367,130.79,130.76,0.66721474]
[1767430983114,8.09390352,130.79,130.76,0.66721474]
[1767430983587,7.64590761,130.79,130.76,0.66721474]
[1767430984017,9.85895231,130.8,130.76,0.66721474]
[1767430984923,7.64483483,130.81,130.77,0.66721474]
[1767430985308,9.85784942,130.82,130.78,0.66721474]
[1767430986723,8.16015927,130.82,130.79,0.66721474]
[1767430987025,7.64430859,130.82,130.79,0.63805425]
[1767430989019,9.46986762,130.82,130.79,0.63805425]
[1767430989225,9.46986762,130.82,130.77,0.63850967]
[1767430989226,2.20966101,130.81,130.77,0.63850967]
[1767430989803,0.51197086,130.81,130.77,0.63850967]
[1767430990005,2.20966101,130.81,130.77,0.63850967]
[1767430990706,9.91571498,130.82,130.76,1.69769015]
[1767430991023,9.91571498,130.82,130.77,1.69769015]
[1767430991205,1.69769015,130.82,130.79,0.66721474]
[1767430991606,1.79669015,130.82,130.79,0.66721474]
[1767430992639,0.099,130.82,130.79,0.66721474]
[1767430993830,0.099,130.82,130.79,0.63872171]
[1767430994533,0.099,130.82,130.79,0.60901597]
[1767430995332,1.79669015,130.82,130.79,0.60901597]
[1767430995633,0.10427585,130.8,130.75,1.69769015]
[1767430996522,0.10427585,130.8,130.77,0.66721474]
[1767431000628,1.801966,130.8,130.76,0.66721474]
[1767431004035,9.44762767,130.8,130.76,0.66721474]
[1767431007937,1.80713687,130.78,130.75,0.66721474]
[1767431009932,1.81220484,130.76,130.73,0.71682988]
[1767431011934,2.30891646,130.75,130.72,14.67682988]
[1767431012137,1.81717196,130.74,130.72,13.96]
[1767431012324,1.78717196,130.74,130.72,13.96]
[1767431012511,1.69769015,130.74,130.72,14.67682988]
[1767431012917,1.69769015,130.74,130.71,0.71682988]
[1767431013113,1.69769015,130.73,130.71,0.71682988]
[1767431015440,8.25097167,130.74,130.71,0.71682988]
[1767431016036,9.94866182,130.74,130.71,0.71682988]
[1767431020140,2.29960516,130.76,130.72,0.71682988]
[1767431020440,2.29960516,130.77,130.72,0.71682988]
[1767431021144,9.44447171,130.76,130.72,0.71682988]
[1767431021325,9.44447171,130.76,130.73,0.71682988]
[1767431022630,10.40221231,130.76,130.73,0.71682988]
[1767431025543,2.65543075,130.75,130.73,0.71682988]
[1767431026349,2.75940961,130.74,130.71,0.71682988]
[1767431026649,2.65543075,130.72,130.7,0.71682988]
[1767431027546,2.65543075,130.73,130.7,8.36792229]
[1767431027720,2.65543075,130.73,130.71,0.71682988]
[1767431028532,2.65543075,130.72,130.7,0.71682988]
[1767431032847,10.40382758,130.73,130.7,0.71682988]
[1767431038857,3.2523166,130.72,130.69,8.3684805]
[1767431039041,3.2523166,130.72,130.68,14.67682988]
[1767431039042,2.75940961,130.71,130.68,14.67682988]
[1767431039435,2.75940961,130.71,130.69,0.71682988]
[1767431039635,2.65543075,130.71,130.69,0.71682988]
[1767431041562,2.75443075,130.71,130.68,14.66384976]
[1767431041939,10.40499074,130.71,130.68,14.66384976]
[1767431042244,2.65543075,130.7,130.68,0.70384976]
[1767431043265,10.40499074,130.71,130.68,0.70384976]
[1767431044139,2.65543075,130.71,130.68,0.70384976]
[1767431045044,2.65543075,130.7,130.68,0.70384976]
[1767431045244,2.65543075,130.71,130.68,0.70384976]
[1767431046057,10.30599074,130.71,130.68,0.70384976]
[1767431046257,10.80890575,130.71,130.68,0.70384976]
[1767431048064,3.15834576,130.71,130.68,0.70384976]
[1767431048368,2.65543075,130.71,130.68,0.70384976]
[1767431048567,10.30554107,130.72,130.68,0.70384976]
[1767431048962,10.40454107,130.72,130.68,0.70384976]
[1767431050666,2.65543075,130.72,130.69,0.70384976]
[1767431050872,10.8079458,130.73,130.69,0.70384976]
[1767431051264,3.15834576,130.73,130.69,0.70384976]
[1767431057177,2.65543075,130.74,130.7,0.70384976]
[1767431057476,19.11786184,130.77,130.72,0.70384976]
[1767431057477,0.50291501,130.76,130.72,0.70384976]
[1767431057986,10.80584746,130.77,130.73,0.70384976]
[1767431058356,2.75443075,130.76,130.73,0.70384976]
[1767431058554,3.15430661,130.75,130.71,0.70384976]
[1767431059279,2.65543075,130.75,130.72,0.70384976]
[1767431059578,10.80610726,130.76,130.72,0.70384976]
[1767431062076,10.80610726,130.76,130.72,8.35378744]
[1767431062272,10.80610726,130.76,130.73,0.70384976]
[1767431063976,0.50291501,130.76,130.73,0.70384976]
[1767431064183,10.80578485,130.77,130.74,0.70384976]
[1767431065284,8.1503541,130.77,130.74,0.70384976]
[1767431066185,10.80578485,130.77,130.74,0.70384976]
[1767431068685,10.80494277,130.78,130.74,0.70384976]
[1767431068883,3.15834576,130.78,130.75,0.70384976]
[1767431069390,0.50291501,130.78,130.75,0.70384976]
[1767431069686,0.50291501,130.79,130.75,0.70384976]
[1767431069884,10.80454635,130.79,130.75,0.70384976]
[1767431070579,7.64620059,130.79,130.75,0.70384976]
[1767431070780,7.64620059,130.79,130.76,0.65268646]
[1767431073097,7.74520059,130.79,130.76,0.65268646]
[1767431074081,7.64620059,130.79,130.76,0.65268646]
[1767431075596,3.1543066,130.78,130.75,0.65268646]
[1767431076284,2.65543075,130.78,130.75,0.65268646]
[1767431076790,10.80454635,130.79,130.75,0.65268646]
[1767431077595,8.1491156,130.79,130.75,0.65268646]
[1767431077899,10.80454635,130.79,130.75,0.65268646]
[1767431078068,10.30198356,130.78,130.75,0.65268646]
[1767431079198,10.40098356,130.78,130.75,0.65268646]
[1767431080878,0.49887586,130.77,130.74,0.65268646]
[1767431081279,10.80489857,130.78,130.74,8.30138297]
[1767431081483,10.80489857,130.78,130.75,0.65268646]
[1767431082291,8.14946782,130.78,130.75,0.65268646]
[1767431084094,7.64655281,130.78,130.75,0.65268646]
[1767431085700,8.14542866,130.78,130.75,0.65268646]
[1767431086404,7.64655281,130.78,130.75,0.65268646]
[1767431089103,7.74555281,130.78,130.75,0.65268646]
[1767431091007,7.64655281,130.78,130.75,0.65268646]
[1767431093398,2.20167927,130.77,130.73,0.65268646]
[1767431093618,0.099,130.76,130.73,0.65268646]
[1767431093909,7.64655281,130.78,130.72,0.65268646]
[1767431093910,2.19764011,130.75,130.72,0.65268646]
[1767431095008,1.80176302,130.74,130.7,22.26345233]
[1767431095305,1.69876426,130.73,130.7,0.65268646]
[1767431095719,9.45065308,130.74,130.7,0.65268646]
[1767431096720,7.75188882,130.74,130.71,0.65268646]
[1767431097015,9.45065308,130.74,130.71,0.65268646]
[1767431100320,0.10299876,130.74,130.71,0.65268646]
[1767431100619,1.80176302,130.74,130.71,0.65268646]
[1767431101716,9.45061742,130.74,130.71,0.65268646]
[1767431102107,7.75185316,130.74,130.71,0.65268646]
[1767431102319,9.45061742,130.74,130.71,0.65268646]
[1767431108725,9.45061742,130.74,130.68,33.08999163]
[1767431108726,1.69876426,130.72,130.68,0.66192533]
[1767431109044,1.69876426,130.71,130.68,0.66192533]
[1767431109727,1.69876426,130.7,130.68,0.66192533]
[1767431113114,2.17167927,130.71,130.68,0.66192533]
[1767431116446,1.69876426,130.7,130.68,0.66192533]
[1767431118336,0.47291501,130.71,130.68,0.66192533]
[1767431118537,1.69876426,130.7,130.68,0.66192533]
[1767431124844,2.17167927,130.71,130.68,0.66192533]
[1767431125050,3.99470081,130.7,130.68,0.66192533]
[1767431126859,5.69346507,130.7,130.68,0.66192533]
[1767431132147,3.99470081,130.7,130.68,0.66192533]
[1767431132341,5.69346507,130.7,130.68,0.66192533]
[1767431133634,1.69876426,130.7,130.68,0.66192533]
[1767431141059,2.17167927,130.71,130.68,0.66192533]
[1767431141459,1.69876426,130.69,130.67,0.65538102]
[1767431141654,1.80146601,130.68,130.65,8.40900132]
[1767431142052,26.77688378,130.71,130.66,0.65538102]
[1767431142053,1.69876426,130.67,130.66,0.65538102]
[1767431142832,2.16794012,130.67,130.65,0.75538102]
[1767431143157,1.69876426,130.66,130.65,0.1]
[1767431143655,1.69876426,130.66,130.64,0.85538102]
[1767431144296,1.69876426,130.65,130.63,8.51007668]
[1767431144563,2.65993874,130.65,130.63,8.51007668]
[1767431145070,8.12603123,130.67,130.64,0.65538102]
[1767431145276,2.65993874,130.66,130.64,0.65538102]
[1767431152574,8.12603123,130.67,130.64,0.65538102]
[1767431152871,2.65993874,130.66,130.64,0.65538102]
[1767431159074,7.65228037,130.68,130.64,0.65538102]
[1767431159301,2.65993874,130.66,130.64,0.65538102]
[1767431160472,2.65993874,130.65,130.63,0.87128591]
[1767431161064,2.65993874,130.64,130.62,0.2]
[1767431161377,2.65993874,130.63,130.62,0.2]
[1767431161568,7.65463106,130.64,130.62,0.2]
[1767431161769,2.65993874,130.63,130.62,0.2]
[1767431164871,2.65993874,130.65,130.63,0.67128591]
[1767431166364,2.65993874,130.66,130.63,0.67128591]
[1767431168576,10.31373593,130.66,130.63,0.67128591]
[1767431172682,2.65993874,130.65,130.62,0.87128591]
[1767431175286,2.65993874,130.63,130.62,0.2]
[1767431175869,2.65993874,130.63,130.62,1e-08]
[1767431177666,10.3151481,130.63,130.59,0.67128591]
[1767431177871,2.65993874,130.62,130.59,0.67128591]
[1767431179385,10.31583519,130.62,130.59,0.67128591]
[1767431179566,2.65993874,130.61,130.59,0.67128591]
[1767431181803,2.65993874,130.6,130.58,0.2]
[1767431182170,2.65993874,130.6,130.58,0.87128591]
[1767431182886,7.65657508,130.61,130.58,0.87128591]
[1767431183093,2.65993874,130.61,130.58,0.87128591]
[1767431183970,10.31597958,130.62,130.59,0.67128591]
[1767431187573,2.65993874,130.61,130.59,0.67128591]
[1767431189001,2.65993874,130.61,130.58,0.87128591]
[1767431189978,2.65993874,130.61,130.58,0.2]
[1767431189979,2.65993874,130.6,130.58,0.2]
[1767431192909,7.65720194,130.6,130.58,0.2]
[1767431193200,10.31714068,130.6,130.58,0.2]
[1767431193782,10.3165531,130.61,130.59,0.67276785]
[1767431194104,7.65661436,130.61,130.59,0.67276785]
[1767431194305,7.65661436,130.61,130.58,0.87276785]
[1767431195404,2.65993874,130.61,130.58,0.87276785]
[1767431196606,10.31660567,130.61,130.58,0.87276785]
[1767431197308,10.31660567,130.61,130.58,0.2]
[1767431201215,2.65993874,130.6,130.58,1e-08]
[1767431201708,2.65993874,130.59,130.58,1e-08]
[1767431204334,26.79118187,130.64,130.58,1e-08]
[1767431204814,2.65993874,130.59,130.58,1e-08]
[1767431205009,2.65993874,130.59,130.57,1e-08]
[1767431205212,2.65993874,130.62,130.56,0.2]
[1767431205213,2.65993874,130.58,130.56,0.2]
[1767431206613,1.70420969,130.58,130.56,0.2]
[1767431207211,1.70420969,130.57,130.55,0.87276785]
[1767431208127,1.70420969,130.57,130.55,0.2]
[1767431208711,26.79733557,130.61,130.55,0.87276785]
[1767431208919,1.70420969,130.58,130.55,0.87276785]
[1767431209613,1.70420969,130.58,130.55,0.2]
[1767431210312,1.70420969,130.57,130.55,0.2]
[1767431210824,9.36336423,130.57,130.55,0.2]
[1767431211398,9.36336423,130.57,130.55,0.87276785]
[1767431213224,9.36336423,130.57,130.55,0.2]
[1767431213406,9.36336423,130.57,130.55,0.87276785]
[1767431215123,9.36336423,130.57,130.55,0.2]
[1767431217824,9.36336423,130.57,130.55,0.87276785]
[1767431220628,9.46804453,130.57,130.55,0.2]
[1767431220820,9.36336423,130.57,130.54,0.2]
[1767431221208,9.36336423,130.57,130.55,0.7166421]
[1767431221611,7.65915454,130.57,130.55,0.7166421]
[1767431221818,9.36336423,130.57,130.55,0.7166421]
[1767431222408,0.46903017,130.56,130.54,0.2]
[1767431223207,7.65915454,130.57,130.55,0.7166421]
[1767431223407,0.1027003,130.56,130.54,0.2]
[1767431224328,9.36336423,130.57,130.55,0.7166421]
[1767431225237,9.8323944,130.57,130.54,0.9166421]
[1767431225534,0.1027003,130.56,130.54,0.2]
[1767431226113,9.36336423,130.57,130.55,0.7166421]
[1767431227830,9.36363462,130.56,130.54,0.9166421]
[1767431228134,9.36363462,130.56,130.55,0.7166421]
[1767431230233,9.36363462,130.56,130.54,0.2]
[1767431232323,9.36363462,130.56,130.54,0.9166421]
[1767431234416,9.93761329,130.56,130.53,0.9166421]
[1767431234741,2.41248665,130.55,130.53,0.2]
[1767431235121,2.41248665,130.55,130.52,0.7166421]
[1767431235433,1.70420969,130.54,130.52,0.7166421]
[1767431235840,2.41248665,130.55,130.52,0.7166421]
[1767431236421,7.6604872,130.54,130.52,0.7166421]
[1767431237740,7.6604872,130.54,130.49,13.98]
[1767431237741,9.94001855,130.54,130.51,0.7166421]
[1767431238241,0.7069474,130.53,130.5,0.7166421]
[1767431238743,2.28084761,130.52,130.5,0.7166421]
[1767431239041,2.28084761,130.52,130.48,0.9166421]
[1767431239738,9.94284598,130.52,130.48,0.9166421]
[1767431241232,9.94284598,130.52,130.49,0.7166421]
[1767431241537,0.7056443,130.51,130.48,0.2]
[1767431241740,0.7056443,130.51,130.48,0.9166421]
[1767431242448,0.7056443,130.51,130.49,0.7166421]
[1767431242650,9.36620806,130.52,130.49,0.7166421]
[1767431244754,8.36930709,130.56,130.52,0.7166421]
[1767431244956,8.36930709,130.56,130.53,0.7166421]
[1767431246752,7.65967358,130.56,130.53,0.7166421]
[1767431246920,8.36844712,130.57,130.54,0.7166421]
[1767431247122,110.76796113,130.58,130.55,0.7166421]
[1767431248242,112.47217082,130.58,130.55,0.7166421]
[1767431248629,110.76796113,130.58,130.55,0.7166421]
[1767431248833,9.36253731,130.58,130.55,0.7166421]
[1767431249250,10.07217082,130.58,130.55,0.7166421]
[1767431251225,0.71217208,130.57,130.54,8.38146637]
[1767431252257,10.07470939,130.58,130.55,0.72099975]
[1767431254961,0.71217208,130.61,130.56,0.72099975]
[1767431255168,2.41638177,130.62,130.57,0.6924978]
[1767431255336,0.71217208,130.62,130.57,1.70420969]
[1767431255540,2.41638177,130.65,130.59,1.70420969]
[1767431255746,10.0706503,130.65,130.59,1.70420969]
[1767431255948,0.71217208,130.65,130.6,1.70420969]
[1767431256165,10.07005192,130.66,130.6,1.70420969]
[1767431256736,10.07005192,130.66,130.57,13.98]
[1767431256737,9.3572802,130.67,130.61,1.70420969]
[1767431256955,10.06945228,130.67,130.61,9.36003668]
[1767431257269,10.06945228,130.67,130.62,0.72099975]
[1767431257463,10.06945228,130.67,130.62,0.69103134]
[1767431258063,1.70420969,130.66,130.62,0.66149969]
[1767431259162,7.65307051,130.67,130.62,7.65572165]
[1767431259350,10.06880506,130.68,130.63,1.70420969]
[1767431259536,10.06880506,130.68,130.62,28.49941993]
[1767431259934,0.71217208,130.67,130.63,0.72099975]
[1767431260135,0.71217208,130.67,130.62,29.22041968]
[1767431260846,0.71217208,130.67,130.62,10.08093109]
[1767431261145,0.71217208,130.67,130.63,0.72099975]
[1767431261335,10.06880506,130.68,130.63,0.72099975]
[1767431262362,8.36459537,130.68,130.64,0.72099975]
[1767431262554,10.06880506,130.68,130.64,0.72099975]
[1767431263447,8.36504079,130.67,130.64,0.72099975]
[1767431263654,10.06925048,130.67,130.64,0.72099975]
[1767431265243,0.71217208,130.66,130.63,8.37614942]
[1767431266243,8.36465401,130.68,130.64,0.72099975]
[1767431266446,1.70420969,130.67,130.64,0.72099975]
[1767431267155,1.70420969,130.67,130.63,7.65514967]
[1767431267362,0.71217208,130.66,130.63,8.37614942]
[1767431269064,0.71217208,130.66,130.63,0.72099975]
[1767431269271,0.71217208,130.65,130.61,25.01611501]
[1767431269562,0.71217208,130.65,130.62,0.72099975]
[1767431269740,0.71217208,130.63,130.6,8.37775617]
[1767431269945,3.37109637,130.64,130.6,8.37775617]
[1767431271670,3.37109637,130.62,130.59,0.72099975]
[1767431276496,0.71217208,130.61,130.58,21.63795073]
[1767431277480,0.71217208,130.6,130.58,13.98]
[1767431277675,0.71217208,130.59,130.58,13.98]
[1767431277879,0.71217208,130.59,130.56,8.38012931]
[1767431278882,0.71217208,130.6,130.58,7.6578599]
[1767431279879,0.66453328,130.62,130.58,7.6578599]
[1767431280899,0.66453328,130.62,130.58,22.29639179]
[1767431281195,0.66453328,130.61,130.58,22.29639179]
[1767431281897,3.32345757,130.62,130.59,0.65853189]
[1767431282395,0.66453328,130.61,130.58,21.6378599]
[1767431282598,0.66453328,130.61,130.58,22.29639179]
[1767431282769,3.32345757,130.62,130.59,0.65853189]
[1767431283500,10.97928583,130.62,130.59,0.65853189]
[1767431283797,0.66453328,130.6,130.57,0.65853189]
[1767431283997,3.32345757,130.6,130.57,0.65853189]
[1767431285794,10.98049018,130.6,130.57,0.65853189]
[1767431286501,8.32156589,130.6,130.57,0.65853189]
[1767431287299,0.66453328,130.6,130.57,0.65853189]
[1767431290401,0.66453328,130.6,130.56,10.97638471]
[1767431290583,0.66453328,130.6,130.56,10.31785282]
[1767431291102,0.66453328,130.6,130.57,0.65853189]
[1767431291305,0.66453328,130.61,130.58,0.65853189]
[1767431292105,0.66453328,130.61,130.57,8.31684818]
[1767431302414,0.66453328,130.6,130.56,7.65909888]
[1767431302708,0.66453328,130.6,130.56,10.97655506]
[1767431303086,0.66453328,130.6,130.57,0.65853189]
[1767431304705,10.97945151,130.62,130.58,0.65853189]
[1767431304894,0.66453328,130.61,130.58,0.65853189]
[1767431305096,0.66453328,130.61,130.56,0.65853189]
[1767431305292,0.66453328,130.61,130.57,0.65853189]
[1767431305603,0.66453328,130.6,130.57,0.65853189]
[1767431310110,0.66453328,130.6,130.56,7.65896825]
[1767431310111,0.68194623,130.59,130.56,7.65896825]
[1767431310888,0.68194623,130.59,130.56,8.31216559]
[1767431315407,8.33961136,130.59,130.56,0.65319734]
[1767431316100,0.68194623,130.59,130.56,0.65319734]
[1767431316300,0.68194623,130.59,130.56,7.65922509]
[1767431319127,0.68194623,130.59,130.56,8.31242243]
[1767431319827,0.68194623,130.59,130.56,0.65319734]
[1767431320234,0.68194623,130.57,130.54,0.65319734]
[1767431321202,0.68194623,130.57,130.53,22.2940609]
[1767431321824,0.68194623,130.57,130.54,0.65319734]
[1767431322199,8.34070417,130.57,130.54,0.65319734]
[1767431323309,0.68194623,130.57,130.54,10.97223463]
[1767431324507,0.68194623,130.57,130.55,2.65892429]
[1767431325230,0.68194623,130.57,130.54,10.97223463]
[1767431326732,0.68194623,130.57,130.54,8.31331034]
[1767431327033,0.68194623,130.57,130.54,10.97223463]
[1767431328734,0.68194623,130.57,130.54,7.660113]
[1767431329829,0.68194623,130.57,130.54,8.31331034]
[1767431330431,0.68194623,130.57,130.53,22.29406713]
[1767431330734,0.68194623,130.57,130.53,23.99817129]
[1767431335136,0.68194623,130.56,130.53,0.65319734]
[1767431335447,0.68194623,130.56,130.52,7.66143896]
[1767431335448,0.68194623,130.56,130.52,10.01874046]
[1767431339737,2.38605039,130.56,130.52,8.3146363]
[1767431340046,0.72453621,130.55,130.52,8.3146363]
[1767431340841,0.72453621,130.55,130.53,0.66764119]
[1767431341043,2.42864037,130.56,130.53,0.66764119]
[1767431342047,0.72453621,130.56,130.53,0.66764119]
[1767431342247,2.42864037,130.56,130.53,8.32861818]
[1767431343337,0.72453621,130.55,130.52,8.32930223]
[1767431346244,0.72453621,130.57,130.54,0.66764119]
[1767431346451,0.72453621,130.57,130.54,14.64764119]
[1767431347329,0.72453621,130.57,130.55,7.65990042]
[1767431347738,0.72453621,130.57,130.55,8.32754161]
[1767431348036,2.42864037,130.6,130.56,0.66764119]
[1767431349157,0.72453621,130.59,130.56,0.66764119]
[1767431349345,2.42864037,130.6,130.57,0.66764119]
[1767431349745,1.70410416,130.59,130.57,0.66764119]
[1767431350250,2.42864037,130.59,130.56,8.32646073]
[1767431350455,1.70410416,130.59,130.57,0.66764119]
[1767431350957,2.42864037,130.59,130.57,0.66764119]
[1767431351435,2.42864037,130.59,130.56,7.65881954]
[1767431351640,2.42864037,130.59,130.56,8.32646073]
[1767431353553,2.42864037,130.6,130.57,0.66764119]
[1767431353738,1.70410416,130.6,130.57,0.66764119]
[1767431354334,2.42864037,130.61,130.58,0.66764119]
[1767431358863,0.72453621,130.6,130.57,22.30614865]
[1767431360142,2.42864037,130.6,130.57,22.30614865]
[1767431360638,2.42864037,130.59,130.57,21.63850746]
[1767431361561,1.70410416,130.59,130.57,22.30614865]
[1767431366066,0.72453621,130.6,130.57,22.30614865]
[1767431366254,1.70410416,130.59,130.57,22.30614865]
[1767431366656,0.72453621,130.6,130.57,22.30614865]
[1767431366859,1.70410416,130.59,130.57,22.30614865]
[1767431370272,0.67017734,130.57,130.54,0.69840711]
[1767431370573,1.70410416,130.56,130.54,14.67840711]
[1767431371070,2.3742815,130.56,130.54,13.98]
[1767431371247,2.3742815,130.56,130.53,22.33948119]
[1767431374847,0.67017734,130.55,130.53,13.98]
[1767431375052,0.67017734,130.55,130.53,21.64102876]
[1767431375551,0.67017734,130.55,130.53,7.66102876]
[1767431375751,0.67017734,130.55,130.53,21.64102876]
[1767431376161,0.67017734,130.55,130.53,7.66102876]
[1767431376350,0.67017734,130.55,130.53,21.64102876]
[1767431377072,0.67017734,130.54,130.53,21.64102876]
[1767431377268,2.3742815,130.55,130.53,21.64102876]
[1767431379475,0.67017734,130.55,130.53,21.64102876]
[1767431380474,0.67017734,130.54,130.5,0.69840711]
[1767431380665,2.3742815,130.54,130.51,13.98]
[1767431380853,2.3742815,130.54,130.51,21.64214411]
[1767431380854,0.67017734,130.53,130.51,21.64214411]
[1767431383578,0.67017734,130.53,130.5,7.66261268]
[1767431383775,0.67017734,130.53,130.5,21.64261268]
[1767431384183,0.67017734,130.53,130.5,22.34101979]
[1767431385384,0.64017734,130.53,130.5,22.34101979]
[1767431391884,3.30415897,130.53,130.5,22.34101979]
[1767431395592,3.27415897,130.53,130.5,22.34101979]
[1767431396692,2.66398163,130.52,130.5,22.34101979]
[1767431398492,3.33415897,130.52,130.5,21.64261268]
[1767431398693,3.33415897,130.52,130.5,22.34101979]
[1767431398993,3.33415897,130.52,130.5,21.64261268]
[1767431400190,7.65994815,130.55,130.48,0.2]
[1767431400191,0.6977171,130.5,130.48,0.2]
[1767431400368,3.36169873,130.5,130.49,13.98]
[1767431400693,3.36169873,130.51,130.48,14.86419026]
[1767431400894,3.36169873,130.51,130.48,0.88419026]
[1767431401080,3.36169873,130.51,130.48,22.52783609]
[1767431401391,3.36169873,130.52,130.49,8.34737963]
[1767431401798,0.6977171,130.52,130.49,8.34737963]
[1767431403097,3.36169873,130.53,130.5,0.68419026]
[1767431403397,0.6977171,130.53,130.5,0.68419026]
[1767431405188,0.6977171,130.54,130.51,14.66419026]
[1767431405381,0.6977171,130.54,130.52,0.68419026]
[1767431405775,0.6977171,130.54,130.51,14.66419026]
[1767431407008,0.6977171,130.54,130.51,22.32638989]
[1767431407189,0.6977171,130.54,130.51,14.66419026]
[1767431407800,3.36169873,130.54,130.51,14.66419026]
[1767431409109,3.36169873,130.54,130.51,22.3263931]
[1767431411511,0.6977171,130.53,130.51,22.3263931]
[1767431415605,2.66398163,130.55,130.51,22.3263931]
[1767431417692,0.6977171,130.54,130.51,22.3263931]
[1767431418391,0.58110798,130.59,130.54,0.68419026]
[1767431418592,0.58110798,130.59,130.55,14.66419026]
[1767431419194,0.69655101,130.58,130.55,14.66419026]
[1767431419393,7.65650121,130.61,130.55,14.66419026]
[1767431419594,0.58110798,130.6,130.56,0.68419026]
[1767431419807,0.58110798,130.6,130.57,8.34291737]
[1767431426817,0.58110798,130.6,130.57,7.65872711]
[1767431427025,0.69655101,130.59,130.57,7.65872711]
[1767431427318,0.69655101,130.59,130.57,8.34291737]
[1767431427498,0.6977171,130.6,130.57,8.34291737]
[1767431429023,0.6977171,130.6,130.57,7.65872711]
[1767431433526,0.6977171,130.6,130.57,8.35488671]
[1767431433725,0.6977171,130.6,130.57,7.65872711]
[1767431435236,0.6977171,130.6,130.56,22.33523085]
[1767431436844,0.6977171,130.6,130.57,8.35482367]
[1767431447842,0.66958433,130.61,130.58,0.6961596]
[1767431448024,121.53872029,130.63,130.59,0.6961596]
[1767431448025,0.66958433,130.63,130.59,0.6961596]
[1767431448335,0.66958433,130.63,130.6,0.6961596]
[1767431448539,14.31507584,130.64,130.6,0.6961596]
[1767431448540,8.32454814,130.64,130.6,0.6961596]
[1767431448940,0.66835942,130.63,130.6,0.6961596]
[1767431454647,2.37077479,130.63,130.6,0.6961596]
[1767431457755,2.37077479,130.63,130.59,21.63712497]
[1767431457756,0.66956007,130.6,130.58,13.98]
[1767431457952,0.66956007,130.6,130.58,14.6761596]
[1767431460637,0.66956007,130.6,130.58,13.98]
[1767431460862,0.68004296,130.6,130.58,13.98]
[1767431461756,1.70241537,130.59,130.58,13.98]
[1767431461964,2.38245833,130.59,130.56,22.32344707]
[1767431462338,0.68004296,130.59,130.56,22.32344707]